fUST/lending_fUST_20250601
["ID","MTS","AMOUNT","RATE_DAILY","PERIOD"]
[363594064,1748778658490,-616.6,0.00018904,2]
[363594066,1748778658501,-750.6,0.00018904,2]
[363594068,1748778658512,-650.31,0.00018904,2]
[363594070,1748778658522,-1707.82,0.00018904,2]
[363594072,1748778658532,-430.0,0.00018904,2]
[363594074,1748778658542,-151.0,0.000191,2]
[363594076,1748778658551,-183.19,0.00019178,2]
[363594078,1748778658561,-500.0,0.00019178,2]
[363594080,1748778658570,-500.0,0.00019178,2]
[363594083,1748778658580,-500.0,0.00019178,2]
[363594084,1748778658590,-500.0,0.00019178,2]
[363594087,1748778658600,-373.04546904,0.00019178,2]
[363594089,1748778658610,-500.0,0.00019178,2]
[363594091,1748778658619,-500.0,0.00019178,2]
[363594093,1748778658634,-500.0,0.00019178,2]
[363594095,1748778658644,-500.0,0.00019178,2]
[363594097,1748778658653,-500.0,0.00019178,2]
[363594099,1748778658663,-500.0,0.00019178,2]
[363594101,1748778658672,-500.0,0.00019178,2]
[363594103,1748778658683,-500.0,0.00019178,2]
[363594105,1748778658693,-430.0,0.00019178,2]
[363594107,1748778658703,-500.0,0.00019178,2]
[363594123,1748778658841,-500.0,0.00019178,2]
[363594125,1748778658851,-318.12080875,0.00019178,2]
[363594127,1748778658860,-500.0,0.00019178,2]
[363594129,1748778658871,-604.79,0.00019178,2]
[363594131,1748778658881,-519.18,0.00019178,2]
[363594133,1748778658891,-430.0,0.00019178,2]
[363594135,1748778658900,-430.0,0.00019178,2]
[363594137,1748778658910,-430.0,0.00019178,2]
[363594139,1748778658919,-430.0,0.00019178,2]
[363594141,1748778658929,-430.0,0.00019178,2]
[363594143,1748778658939,-430.0,0.00019178,2]
[363594145,1748778658951,-430.0,0.00019178,2]
[363594147,1748778658960,-430.0,0.00019178,2]
[363594149,1748778658971,-151.67,0.00019178,2]
[363594151,1748778658980,-344.95,0.00019178,2]
[363594153,1748778658992,-315.98678675,0.00019178,2]
[363594156,1748778659001,-430.0,0.00019178,2]
[363594158,1748778659011,-430.0,0.00019178,2]
[363594160,1748778659020,-430.0,0.00019178,2]
[363594162,1748778659031,-430.0,0.00019178,2]
[363594164,1748778659041,-430.0,0.00019178,2]
[363594166,1748778659050,-430.0,0.00019178,2]
[363594168,1748778659060,-430.0,0.00019178,2]
[363594170,1748778659069,-430.0,0.00019178,2]
[363594172,1748778659079,-484.29,0.00019178,2]
[363594174,1748778659090,-430.0,0.00019178,2]
[363594176,1748778659099,-430.0,0.00019178,2]
[363594178,1748778659109,-430.0,0.00019178,2]
[363594180,1748778659119,-502.75,0.00019178,2]
[363594182,1748778659130,-418.22,0.00019178,2]
[363594184,1748778659140,-900.49,0.00019178,2]
[363594186,1748778659151,-1201.76,0.00019178,2]
[363594189,1748778659161,-430.0,0.00019178,2]
[363594190,1748778659170,-430.0,0.00019178,2]
[363594193,1748778659181,-538.56723499,0.00019178,2]
[363594195,1748778659194,-1571.72,0.00019178,2]
[363594197,1748778659204,-624.1,0.00019178,2]
[363594199,1748778659213,-443.14,0.00019178,2]
[363594201,1748778659223,-430.0,0.00019178,2]
[363594203,1748778659232,-227.37290623,0.00019178,2]
[363594205,1748778659241,-430.0,0.00019178,2]
[363594207,1748778659250,-283.62,0.00019178,2]
[363594209,1748778659260,-430.0,0.00019178,2]
[363594211,1748778659269,-563.66,0.00019178,2]
[363594213,1748778659279,-387.92,0.00019178,2]
[363594215,1748778659288,-430.0,0.00019178,2]
[363594217,1748778659298,-430.0,0.00019178,2]
[363594219,1748778659308,-500.09,0.00019178,2]
[363594221,1748778659317,-1288.85,0.00019178,2]
[363594223,1748778659327,-584.92,0.00019178,2]
[363594225,1748778659337,-430.0,0.00019178,2]
[363594227,1748778659347,-430.0,0.00019178,2]
[363594229,1748778659357,-621.63,0.00019178,2]
[363594231,1748778659367,-728.76,0.00019178,2]
[363594233,1748778659376,-430.0,0.00019178,2]
[363594235,1748778659387,-430.0,0.00019178,2]
[363594237,1748778659397,-430.0,0.00019178,2]
[363594239,1748778659406,-442.63,0.00019178,2]
[363594241,1748778659416,-694.2,0.00019178,2]
[363594243,1748778659426,-616.6,0.00019178,2]
[363594245,1748778659436,-750.6,0.00019178,2]
[363594248,1748778659446,-650.31,0.00019178,2]
[363594250,1748778659456,-1707.82,0.00019178,2]
[363594251,1748778659466,-430.0,0.00019178,2]
[363594253,1748778659476,-151.0,0.00019178,2]
[363594255,1748778659485,-166.239268,0.00019178,2]
[363594257,1748778659495,-156.587,0.00019233,2]
[363594260,1748778659505,-162.380719,0.00019288,2]
[363594262,1748778659515,-168.3888056,0.00019343,2]
[363594264,1748778659525,-174.61919141,0.00019398,2]
[363594266,1748778659535,-151.0,0.000194,2]
[363594268,1748778659545,-500.0,0.0001945,2]
[363594270,1748778659554,-503.74229724,0.0001945,2]
[363594272,1748778659564,-158.71073349,0.0001945,2]
[363594274,1748778659573,-499.08564506,0.0001945,2]
[363594276,1748778659582,-188.77363041,0.0001945,2]
[363594278,1748778659591,-259.80650372,0.0001945,2]
[363594280,1748778659601,-500.16902464,0.0001945,2]
[363594282,1748778659611,-168.73407253,0.0001945,2]
[363594284,1748778659621,-604.79,0.00019452,2]
[363594286,1748778659630,-519.18,0.00019452,2]
[363594288,1748778659639,-430.0,0.00019452,2]
[363594290,1748778659649,-430.0,0.00019452,2]
[363594291,1748778659658,-470.0,0.00019452,2]
[363594293,1748778659668,-430.0,0.00019452,2]
[363594296,1748778659679,-430.0,0.00019452,2]
[363594298,1748778659688,-430.0,0.00019452,2]
[363594300,1748778659697,-224.34,0.00019452,2]
[363594302,1748778659708,-430.0,0.00019452,2]
[363594303,1748778659718,-430.0,0.00019452,2]
[363594305,1748778659728,-430.0,0.00019452,2]
[363594307,1748778659737,-430.0,0.00019452,2]
[363594309,1748778659746,-502.75,0.00019452,2]
[363594311,1748778659757,-900.49,0.00019452,2]
[363594314,1748778659767,-1201.76,0.00019452,2]
[363594316,1748778659777,-430.0,0.00019452,2]
[363594317,1748778659787,-1571.72,0.00019452,2]
[363594320,1748778659797,-624.1,0.00019452,2]
[363594322,1748778659808,-443.14,0.00019452,2]
[363594324,1748778659818,-430.0,0.00019452,2]
[363594326,1748778659828,-430.0,0.00019452,2]
[363594328,1748778659838,-563.66,0.00019452,2]
[363594330,1748778659848,-430.0,0.00019452,2]
[363594332,1748778659858,-1288.85,0.00019452,2]
[363594334,1748778659868,-584.92,0.00019452,2]
[363594336,1748778659878,-430.0,0.00019452,2]
[363594337,1748778659890,-430.0,0.00019452,2]
[363594339,1748778659901,-621.63,0.00019452,2]
[363594341,1748778659911,-728.76,0.00019452,2]
[363594344,1748778659922,-430.0,0.00019452,2]
[363594346,1748778659934,-430.0,0.00019452,2]
[363594347,1748778659944,-430.0,0.00019452,2]
[363594349,1748778659959,-694.2,0.00019452,2]
[363594351,1748778659968,-616.6,0.00019452,2]
[363594353,1748778659979,-750.6,0.00019452,2]
[363594355,1748778659990,-650.31,0.00019452,2]
[363594357,1748778660000,-1707.82,0.00019452,2]
[363594359,1748778660010,-430.0,0.00019452,2]
[363594361,1748778660020,-181.08010149,0.00019453,2]
[363594363,1748778660032,-187.78006525,0.00019508,2]
[363594365,1748778660042,-257.91707847,0.00019538,2]
[363594368,1748778660052,-194.72792766,0.00019563,2]
[363594369,1748778660063,-437.357,0.00019598,2]
[363594372,1748778660074,-178.59002559,0.00019598,2]
[363594374,1748778660085,-201.93286099,0.00019618,2]
[363594376,1748778660097,-209.40437684,0.00019673,2]
[363594378,1748778660107,-339.88545409,0.00019692,2]
[363594380,1748778660117,-649.21402904,0.00019692,2]
[363594382,1748778660127,-151.0,0.00019726,2]
[363594384,1748778660137,-604.79,0.00019726,2]
[363594386,1748778660146,-519.18,0.00019726,2]
[363594388,1748778660156,-430.0,0.00019726,2]
[363594390,1748778660166,-430.0,0.00019726,2]
[363594392,1748778660177,-430.0,0.00019726,2]
[363594394,1748778660186,-430.0,0.00019726,2]
[363594396,1748778660196,-430.0,0.00019726,2]
[363594398,1748778660206,-430.0,0.00019726,2]
[363594400,1748778660216,-395.7,0.00019726,2]
[363594401,1748778660226,-423.12,0.00019726,2]
[363594403,1748778660236,-502.75,0.00019726,2]
[363594405,1748778660246,-900.49,0.00019726,2]
[363594407,1748778660256,-1201.76,0.00019726,2]
[363594409,1748778660267,-263.77,0.00019726,2]
[363594411,1748778660277,-1571.72,0.00019726,2]
[363594413,1748778660287,-624.1,0.00019726,2]
[363594415,1748778660297,-443.14,0.00019726,2]
[363594417,1748778660307,-430.0,0.00019726,2]
[363594419,1748778660317,-430.0,0.00019726,2]
[363594421,1748778660327,-563.66,0.00019726,2]
[363594423,1748778660337,-430.0,0.00019726,2]
[363594425,1748778660346,-1288.85,0.00019726,2]
[363594427,1748778660357,-584.92,0.00019726,2]
[363594429,1748778660366,-235.84,0.00019726,2]
[363594431,1748778660375,-430.0,0.00019726,2]
[363594433,1748778660386,-621.63,0.00019726,2]
[363594435,1748778660396,-728.76,0.00019726,2]
[363594437,1748778660405,-430.0,0.00019726,2]
[363594439,1748778660415,-430.0,0.00019726,2]
[363594441,1748778660425,-430.0,0.00019726,2]
[363594443,1748778660435,-694.2,0.00019726,2]
[363594445,1748778660444,-616.6,0.00019726,2]
[363594447,1748778660454,-750.6,0.00019726,2]
[363594449,1748778660463,-650.31,0.00019726,2]
[363594451,1748778660473,-1707.82,0.00019726,2]
[363594453,1748778660483,-562.15503019,0.00019726,2]
[363594455,1748778660492,-217.15233878,0.00019728,2]
[363594457,1748778660502,-225.18697532,0.00019783,2]
[363594459,1748778660511,-500.0,0.00019814,2]
[363594460,1748778660520,-233.51889341,0.00019838,2]
[363594462,1748778660530,-179.75850939,0.00019893,2]
[363594464,1748778660541,-500.0,0.00019964,2]
[363594466,1748778660550,-604.79,0.0002,2]
[363594468,1748778660561,-519.18,0.0002,2]
[363594470,1748778660571,-430.0,0.0002,2]
[363594472,1748778660583,-165.99033755,0.0002,2]
[363594474,1748778660593,-430.0,0.0002,2]
[363594476,1748778660602,-327.8,0.0002,2]
[363594478,1748778660612,-430.0,0.0002,2]
[363594480,1748778660622,-502.75,0.0002,2]
[363594482,1748778660632,-900.49,0.0002,2]
[363594484,1748778660641,-1201.76,0.0002,2]
[363594486,1748778660651,-1571.72,0.0002,2]
[363594488,1748778660660,-624.1,0.0002,2]
[363594490,1748778660670,-443.14,0.0002,2]
[363594492,1748778660681,-430.0,0.0002,2]
[363594494,1748778660691,-299.18,0.0002,2]
[363594496,1748778660701,-563.66,0.0002,2]
[363594499,1748778660723,-430.0,0.0002,2]
[363594501,1748778660733,-1288.85,0.0002,2]
[363594504,1748778660744,-584.92,0.0002,2]
[363594505,1748778660753,-430.0,0.0002,2]
[363594507,1748778660763,-621.63,0.0002,2]
[363594510,1748778660774,-728.76,0.0002,2]
[363594512,1748778660785,-430.0,0.0002,2]
[363594514,1748778660795,-430.0,0.0002,2]
[363594516,1748778660806,-421.21,0.0002,2]
[363594518,1748778660816,-694.2,0.0002,2]
[363594520,1748778660827,-616.6,0.0002,2]
[363594522,1748778660838,-750.6,0.0002,2]
[363594524,1748778660848,-650.31,0.0002,2]
[363594526,1748778660858,-1707.82,0.0002,2]
[363594528,1748778660868,-480.906921,0.00020187,2]
[363594529,1748778660878,-604.79,0.00020273,2]
[363594531,1748778660889,-519.18,0.00020273,2]
[363594533,1748778660900,-430.0,0.00020273,2]
[363594535,1748778660911,-463.33,0.00020273,2]
[363594537,1748778660922,-430.0,0.00020273,2]
[363594539,1748778660933,-502.75,0.00020273,2]
[363594541,1748778660944,-900.49,0.00020273,2]
[363594543,1748778660959,-1201.76,0.00020273,2]
[363594545,1748778660969,-1571.72,0.00020273,2]
[363594547,1748778660979,-624.1,0.00020273,2]
[363594549,1748778660991,-443.14,0.00020273,2]
[363594551,1748778661001,-430.0,0.00020273,2]
[363594553,1748778661011,-563.66,0.00020273,2]
[363594555,1748778661021,-430.0,0.00020273,2]
[363594571,1748778661033,-1288.85,0.00020273,2]
[363594574,1748778661189,-584.92,0.00020273,2]
[363594576,1748778661199,-430.0,0.00020273,2]
[363594577,1748778661210,-621.63,0.00020273,2]
[363594579,1748778661220,-728.76,0.00020273,2]
[363594582,1748778661231,-430.0,0.00020273,2]
[363594583,1748778661240,-430.0,0.00020273,2]
[363594585,1748778661249,-694.2,0.00020273,2]
[363594587,1748778661259,-616.6,0.00020273,2]
[363594589,1748778661270,-750.6,0.00020273,2]
[363594591,1748778661281,-650.31,0.00020273,2]
[363594594,1748778661296,-1707.82,0.00020273,2]
[363594596,1748778661306,-151.0,0.00020547,2]
[363594598,1748778661316,-619.666959,0.00020547,2]
[363594600,1748778661326,-151.0,0.00020547,2]
[363594601,1748778661336,-604.79,0.00020547,2]
[363594604,1748778661346,-519.18,0.00020547,2]
[363594606,1748778661357,-430.0,0.00020547,2]
[363594607,1748778661367,-502.75,0.00020547,2]
[363594610,1748778661378,-900.49,0.00020547,2]
[363594612,1748778661388,-1201.76,0.00020547,2]
[363594614,1748778661398,-1571.72,0.00020547,2]
[363594615,1748778661408,-624.1,0.00020547,2]
[363594617,1748778661419,-443.14,0.00020547,2]
[363594619,1748778661430,-430.0,0.00020547,2]
[363594622,1748778661440,-563.66,0.00020547,2]
[363594623,1748778661450,-409.87,0.00020547,2]
[363594626,1748778661461,-1288.85,0.00020547,2]
[363594627,1748778661472,-584.92,0.00020547,2]
[363594629,1748778661483,-443.26,0.00020547,2]
[363594631,1748778661493,-621.63,0.00020547,2]
[363594634,1748778661503,-728.76,0.00020547,2]
[363594636,1748778661514,-430.0,0.00020547,2]
[363594638,1748778661523,-430.0,0.00020547,2]
[363594640,1748778661534,-694.2,0.00020547,2]
[363594642,1748778661543,-616.6,0.00020547,2]
[363594643,1748778661553,-750.6,0.00020547,2]
[363594646,1748778661563,-650.31,0.00020547,2]
[363594647,1748778661573,-1707.82,0.00020547,2]
[363594649,1748778661583,-407.23,0.000206,2]
[363594651,1748778661593,-327.25,0.000206,2]
[363594653,1748778661602,-2864.97,0.000206,2]
[363594655,1748778661613,-28732.12,0.000206,2]
[363594657,1748778661623,-257.91707847,0.00020604,2]
[363594659,1748778661632,-708.0,0.00020657,2]
[363594661,1748778661642,-2227.0,0.00020657,2]
[363594663,1748778661652,-151.608,0.00020657,2]
[363594665,1748778661662,-196.585,0.00020657,2]
[363594667,1748778661672,-241.427,0.00020657,2]
[363594669,1748778661683,-604.79,0.00020821,2]
[363594671,1748778661692,-519.18,0.00020821,2]
[363594673,1748778661702,-430.0,0.00020821,2]
[363594675,1748778661713,-502.75,0.00020821,2]
[363594677,1748778661723,-900.49,0.00020821,2]
[363594679,1748778661733,-1201.76,0.00020821,2]
[363594681,1748778661742,-1571.72,0.00020821,2]
[363594683,1748778661752,-624.1,0.00020821,2]
[363594685,1748778661765,-443.14,0.00020821,2]
[363594687,1748778661776,-405.33384318,0.00020821,2]
[363594689,1748778661787,-563.66,0.00020821,2]
[363594691,1748778661796,-1288.85,0.00020821,2]
[363594693,1748778661806,-584.92,0.00020821,2]
[363594695,1748778661816,-621.63,0.00020821,2]
[363594697,1748778661826,-728.76,0.00020821,2]
[363594699,1748778661836,-430.0,0.00020821,2]
[363594701,1748778661846,-694.2,0.00020821,2]
[363594703,1748778661856,-616.6,0.00020821,2]
[363594705,1748778661867,-750.6,0.00020821,2]
[363594707,1748778661878,-650.31,0.00020821,2]
[363594709,1748778661888,-1707.82,0.00020821,2]
[363594711,1748778661898,-496.21,0.000209,2]
[363594713,1748778661908,-500.0,0.0002106,2]
[363594715,1748778661918,-604.79,0.00021095,2]
[363594717,1748778661930,-519.18,0.00021095,2]
[363594719,1748778661941,-430.0,0.00021095,2]
[363594721,1748778661956,-502.75,0.00021095,2]
[363594723,1748778661968,-900.49,0.00021095,2]
[363594725,1748778661979,-1201.76,0.00021095,2]
[363594727,1748778661990,-1571.72,0.00021095,2]
[363594729,1748778662001,-624.1,0.00021095,2]
[363594731,1748778662011,-443.14,0.00021095,2]
[363594733,1748778662021,-563.66,0.00021095,2]
[363594735,1748778662033,-1288.85,0.00021095,2]
[363594737,1748778662043,-584.92,0.00021095,2]
[363594739,1748778662053,-621.63,0.00021095,2]
[363594741,1748778662063,-728.76,0.00021095,2]
[363594743,1748778662073,-399.7,0.00021095,2]
[363594745,1748778662083,-694.2,0.00021095,2]
[363594746,1748778662092,-616.6,0.00021095,2]
[363594747,1748778662102,-750.6,0.00021095,2]
[363594748,1748778662112,-650.31,0.00021095,2]
[363594749,1748778662124,-1707.82,0.00021095,2]
[363594750,1748778662133,-151.0,0.00021369,2]
[363594751,1748778662143,-604.79,0.00021369,2]
[363594752,1748778662153,-519.18,0.00021369,2]
[363594753,1748778662163,-430.0,0.00021369,2]
[363594754,1748778662173,-502.75,0.00021369,2]
[363594755,1748778662184,-900.49,0.00021369,2]
[363594756,1748778662194,-1201.76,0.00021369,2]
[363594757,1748778662204,-1571.72,0.00021369,2]
[363594758,1748778662213,-624.1,0.00021369,2]
[363594759,1748778662224,-443.14,0.00021369,2]
[363594760,1748778662233,-563.66,0.00021369,2]
[363594761,1748778662243,-1288.85,0.00021369,2]
[363594762,1748778662252,-584.92,0.00021369,2]
[363594763,1748778662261,-621.63,0.00021369,2]
[363594764,1748778662271,-728.76,0.00021369,2]
[363594765,1748778662280,-694.2,0.00021369,2]
[363594766,1748778662289,-616.6,0.00021369,2]
[363594767,1748778662299,-750.6,0.00021369,2]
[363594768,1748778662309,-650.31,0.00021369,2]
[363594770,1748778662319,-1707.82,0.00021369,2]
[363594771,1748778662328,-151.0,0.000214,4]
[363594773,1748778662339,-604.79,0.00021643,2]
[363594774,1748778662348,-519.18,0.00021643,2]
[363594776,1748778662358,-571.56,0.00021643,2]
[363594778,1748778662368,-502.75,0.00021643,2]
[363594780,1748778662378,-900.49,0.00021643,2]
[363594782,1748778662387,-1201.76,0.00021643,2]
[363594784,1748778662397,-1571.72,0.00021643,2]
[363594786,1748778662406,-624.1,0.00021643,2]
[363594788,1748778662416,-443.14,0.00021643,2]
[363594790,1748778662426,-563.66,0.00021643,2]
[363594792,1748778662437,-1288.85,0.00021643,2]
[363594794,1748778662446,-584.92,0.00021643,2]
[363594796,1748778662456,-621.63,0.00021643,2]
[363594798,1748778662466,-728.76,0.00021643,2]
[363594800,1748778662476,-694.2,0.00021643,2]
[363594802,1748778662485,-616.6,0.00021643,2]
[363594804,1748778662495,-750.6,0.00021643,2]
[363594806,1748778662505,-650.31,0.00021643,2]
[363594808,1748778662515,-1707.82,0.00021643,2]
[363594810,1748778662525,-257.91707847,0.00021671,2]
[363594812,1748778662534,-604.79,0.00021917,2]
[363594814,1748778662545,-519.18,0.00021917,2]
[363594816,1748778662555,-502.75,0.00021917,2]
[363594818,1748778662565,-900.49,0.00021917,2]
[363594820,1748778662575,-1201.76,0.00021917,2]
[363594822,1748778662585,-1571.72,0.00021917,2]
[363594824,1748778662594,-624.1,0.00021917,2]
[363594826,1748778662604,-443.14,0.00021917,2]
[363594828,1748778662614,-563.66,0.00021917,2]
[363594831,1748778662626,-1288.85,0.00021917,2]
[363594833,1748778662635,-584.92,0.00021917,2]
[363594835,1748778662645,-621.63,0.00021917,2]
[363594837,1748778662654,-728.76,0.00021917,2]
[363594839,1748778662664,-694.2,0.00021917,2]
[363594841,1748778662673,-616.6,0.00021917,2]
[363594843,1748778662684,-750.6,0.00021917,2]
[363594845,1748778662694,-650.31,0.00021917,2]
[363594847,1748778662704,-1707.82,0.00021917,2]
[363594848,1748778662714,-151.0,0.00022,2]
[363594850,1748778662724,-619.666959,0.00022,7]
[363594853,1748778662734,-151.0,0.00022,2]
[363594855,1748778662744,-140873.59,0.00022,7]
[363594856,1748778662754,-166.0,0.00022,2]
[363594859,1748778662764,-3657.6043832,0.00022,2]
[363594861,1748778662775,-842.5625,0.00022,7]
[363594863,1748778662786,-500.0,0.00022156,2]
[363594865,1748778662796,-223.156742,0.00022191,7]
[363594867,1748778662806,-604.79,0.00022191,2]
[363594869,1748778662815,-519.18,0.00022191,2]
[363594871,1748778662826,-502.75,0.00022191,2]
[363594873,1748778662835,-900.49,0.00022191,2]
[363594875,1748778662846,-1201.76,0.00022191,2]
[363594877,1748778662855,-1571.72,0.00022191,2]
[363594879,1748778662865,-624.1,0.00022191,2]
[363594881,1748778662875,-443.14,0.00022191,2]
[363594883,1748778662885,-563.66,0.00022191,2]
[363594885,1748778662895,-1288.85,0.00022191,2]
[363594887,1748778662905,-584.92,0.00022191,2]
[363594889,1748778662915,-621.63,0.00022191,2]
[363594891,1748778662924,-728.76,0.00022191,2]
[363594893,1748778662935,-694.2,0.00022191,2]
[363594895,1748778662944,-616.6,0.00022191,2]
[363594897,1748778662958,-750.6,0.00022191,2]
[363594899,1748778662968,-650.31,0.00022191,2]
[363594901,1748778662977,-1707.82,0.00022191,2]
[363594903,1748778662987,-604.79,0.00022465,2]
[363594904,1748778662998,-519.18,0.00022465,2]
[363594907,1748778663009,-502.75,0.00022465,2]
[363594909,1748778663019,-900.49,0.00022465,2]
[363594910,1748778663028,-1201.76,0.00022465,2]
[363594913,1748778663041,-1571.72,0.00022465,2]
[363594915,1748778663051,-624.1,0.00022465,2]
[363594917,1748778663062,-443.14,0.00022465,2]
[363594919,1748778663072,-563.66,0.00022465,2]
[363594921,1748778663082,-1288.85,0.00022465,2]
[363594923,1748778663093,-584.92,0.00022465,2]
[363594925,1748778663103,-621.63,0.00022465,2]
[363594927,1748778663114,-728.76,0.00022465,2]
[363594929,1748778663126,-694.2,0.00022465,2]
[363594931,1748778663136,-616.6,0.00022465,2]
[363594933,1748778663147,-750.6,0.00022465,2]
[363594935,1748778663157,-650.31,0.00022465,2]
[363594937,1748778663167,-1707.82,0.00022465,2]
[363594939,1748778663178,-207.4,0.00022467,2]
[363594941,1748778663190,-166.239268,0.00022603,2]
[363594943,1748778663200,-155.3651621,0.0002263,2]
[363594945,1748778663212,-28732.12,0.000227,2]
[363594958,1748778663321,-257.91707847,0.00022738,2]
[363594960,1748778663331,-604.94,0.00022739,2]
[363594962,1748778663341,-519.27,0.00022739,2]
[363594964,1748778663351,-502.76,0.00022739,2]
[363594966,1748778663361,-900.63,0.00022739,2]
[363594968,1748778663370,-1201.96,0.00022739,2]
[363594970,1748778663381,-1571.92,0.00022739,2]
[363594972,1748778663391,-624.29,0.00022739,2]
[363594974,1748778663402,-443.14,0.00022739,2]
[363594976,1748778663412,-563.84,0.00022739,2]
[363594978,1748778663422,-1289.06000001,0.00022739,2]
[363594980,1748778663432,-584.95,0.00022739,2]
[363594982,1748778663442,-621.76,0.00022739,2]
[363594984,1748778663451,-728.80261158,0.00022739,2]
[363594985,1748778663460,-694.34,0.00022739,2]
[363594988,1748778663471,-616.67,0.00022739,2]
[363594990,1748778663481,-750.77,0.00022739,2]
[363594991,1748778663491,-650.49,0.00022739,2]
[363594994,1748778663501,-1708.0,0.00022739,2]
[363594995,1748778663511,-306.0,0.00022767,2]
[363594997,1748778663520,-2864.97,0.000228,2]
[363594999,1748778663530,-327.25,0.00023,7]
[363595001,1748778663540,-167.0,0.00023014,7]
[363595003,1748778663550,-30391.77,0.00023024,6]
[363595006,1748778663561,-122938.48,0.00023024,6]
[363595008,1748778663572,-193.30573625,0.00023046,2]
[363595010,1748778663581,-151.0,0.000231,2]
[363595012,1748778663591,-619.666959,0.000231,7]
[363595014,1748778663601,-242.91972,0.000231,2]
[363595016,1748778663611,-407.23,0.000231,7]
[363595018,1748778663620,-1325.165246,0.00023324,3]
[363595020,1748778663629,-9859.40490574,0.00023332,2]
[363595021,1748778663639,-5000.0,0.00023332,2]
[363595023,1748778663648,-5000.0,0.00023332,2]
[363595025,1748778663658,-5000.0,0.00023332,2]
[363595027,1748778663667,-5000.0,0.00023332,2]
[363595030,1748778663677,-155.6687316,0.00023397,2]
[363595032,1748778663689,-1488.64,0.000234,7]
[363595034,1748778663699,-155.01,0.000235,30]
[363595036,1748778663709,-1740.08153917,0.000236,2]
[363595038,1748778663718,-3695.69825899,0.00023602,2]
[363595040,1748778663731,-1740.08153913,0.00023623,2]
[363595042,1748778663740,-1740.08153913,0.00023645,2]
[363595044,1748778663750,-207.227,0.00023657,2]
[363595046,1748778663761,-2227.0,0.00023657,2]
[363595048,1748778663771,-150.0,0.00023657,2]
[363595050,1748778663780,-150.0,0.00023657,2]
[363595052,1748778663792,-150.0,0.00023657,2]
[363595054,1748778663801,-1740.08153913,0.00023668,2]
[363595056,1748778663811,-1740.08153913,0.0002369,2]
[363595058,1748778663821,-2000.0,0.000237,2]
[363595060,1748778663831,-140873.59,0.000237,7]
[363595062,1748778663841,-152.99,0.000237,31]
[363595064,1748778663852,-152.99,0.000237,31]
[363595066,1748778663862,-152.99,0.000237,31]
[363595068,1748778663872,-152.99,0.000237,31]
[363595070,1748778663882,-152.99,0.000237,31]
[363595072,1748778663892,-152.99,0.000237,31]
[363595074,1748778663903,-152.99,0.000237,31]
[363595076,1748778663913,-152.99,0.000237,31]
[363595078,1748778663923,-152.99,0.000237,31]
[363595080,1748778663934,-152.99,0.000237,31]